[Event "Live Chess"]
[Site "Chess.com"]
[Date "2024.06.02"]
[Round "-"]
[White "E2E4colchester"]
[Black "V1nas"]
[Result "0-1"]
[WhiteElo "1008"]
[BlackElo "1323"]
[TimeControl "300"]
[EndTime "8:25:22 PDT"]
[Termination "V1nas won on time"]

1. d4 {[%clk 0:04:56.8]} 1... d5 {[%clk 0:04:58.5]} 2. c4 {[%clk 0:04:55.3]}
2... Nf6 {[%clk 0:04:57.9]} 3. e3 {[%clk 0:04:54.2]} 3... e6 {[%clk 0:04:57.3]}
4. c5 {[%clk 0:04:52.6]} 4... b6 {[%clk 0:04:56.2]} 5. b4 {[%clk 0:04:49.4]}
5... bxc5 {[%clk 0:04:46.8]} 6. bxc5 {[%clk 0:04:48.2]} 6... Be7 {[%clk
0:04:44]} 7. Nc3 {[%clk 0:04:44.3]} 7... O-O {[%clk 0:04:42.3]} 8. Ba3 {[%clk
0:04:40.7]} 8... c6 {[%clk 0:04:37.8]} 9. Rb1 {[%clk 0:04:36.2]} 9... Ba6 {[%clk
0:04:35.5]} 10. Bxa6 {[%clk 0:04:34]} 10... Nxa6 {[%clk 0:04:34.3]} 11. Nf3
{[%clk 0:04:29.7]} 11... Qa5 {[%clk 0:04:29.8]} 12. Qd2 {[%clk 0:04:17.9]} 12...
Qxa3 {[%clk 0:04:27.3]} 13. Ne5 {[%clk 0:04:07]} 13... Rfc8 {[%clk 0:04:17.8]}
14. Rb3 {[%clk 0:03:59.1]} 14... Qa5 {[%clk 0:04:13.1]} 15. O-O {[%clk 0:03:49]}
15... Qc7 {[%clk 0:03:44]} 16. Rfb1 {[%clk 0:03:45.1]} 16... Rab8 {[%clk
0:03:26.1]} 17. Ne2 {[%clk 0:03:20.4]} 17... Rxb3 {[%clk 0:03:21.8]} 18. axb3
{[%clk 0:03:15.8]} 18... Nxc5 {[%clk 0:03:20.1]} 19. dxc5 {[%clk 0:03:11.6]}
19... Qxe5 {[%clk 0:03:18.2]} 20. b4 {[%clk 0:03:06.4]} 20... Ne4 {[%clk
0:03:12]} 21. Qd3 {[%clk 0:02:56.6]} 21... Qf6 {[%clk 0:03:01.1]} 22. f3 {[%clk
0:02:54.1]} 22... Ng5 {[%clk 0:02:32.1]} 23. Qa6 {[%clk 0:02:49.8]} 23... Rc7
{[%clk 0:02:13.7]} 24. b5 {[%clk 0:02:37.4]} 24... Nxf3+ {[%clk 0:02:12.2]} 25.
gxf3 {[%clk 0:02:28.5]} 25... Qg6+ {[%clk 0:02:11.2]} 26. Kf1 {[%clk 0:02:22.1]}
26... Qxb1+ {[%clk 0:02:09]} 27. Kf2 {[%clk 0:02:18.5]} 27... Bh4+ {[%clk
0:02:08]} 28. Kg2 {[%clk 0:02:17.6]} 28... Qxb5 {[%clk 0:01:57]} 29. Qa2 {[%clk
0:02:01.5]} 29... Qxc5 {[%clk 0:01:53]} 30. Nd4 {[%clk 0:01:57.7]} 30... Bf6
{[%clk 0:01:49.1]} 31. Qb1 {[%clk 0:01:46.5]} 31... Qb6 {[%clk 0:01:37]} 32. Qd1
{[%clk 0:01:30.7]} 32... h5 {[%clk 0:01:35.1]} 33. Kg3 {[%clk 0:01:25.5]} 33...
Bxd4 {[%clk 0:01:33.2]} 34. exd4 {[%clk 0:01:24.2]} 34... a5 {[%clk 0:01:27.6]}
35. Kh4 {[%clk 0:01:21.3]} 35... g6 {[%clk 0:01:24.8]} 36. Kg5 {[%clk
0:01:18.9]} 36... Rb7 {[%clk 0:01:20.9]} 37. Kf6 {[%clk 0:01:12.7]} 37... Qd8+
{[%clk 0:01:20]} 38. Ke5 {[%clk 0:01:08.5]} 38... Qe7 {[%clk 0:01:15.4]} 39. Qd2
{[%clk 0:01:04]} 39... f6+ {[%clk 0:01:14.7]} 40. Kf4 {[%clk 0:01:02.5]} 40...
g5+ {[%clk 0:01:12.9]} 41. Kg3 {[%clk 0:01:01.1]} 41... Kg7 {[%clk 0:01:08.6]}
42. Qxa5 {[%clk 0:00:58.3]} 42... h4+ {[%clk 0:01:05.2]} 43. Kg4 {[%clk
0:00:52.1]} 43... f5+ {[%clk 0:01:02.4]} 44. Kh3 {[%clk 0:00:49.7]} 44... Rb3
{[%clk 0:00:56.8]} 45. Kg2 {[%clk 0:00:36.4]} 45... h3+ {[%clk 0:00:54.5]} 46.
Kg3 {[%clk 0:00:32.7]} 46... g4 {[%clk 0:00:51]} 47. Kf4 {[%clk 0:00:19]} 47...
Rxf3+ {[%clk 0:00:49.1]} 48. Ke5 {[%clk 0:00:17.8]} 48... Kg6 {[%clk 0:00:45.4]}
49. Qd2 {[%clk 0:00:15.3]} 49... Qf6+ {[%clk 0:00:40.2]} 50. Kd6 {[%clk
0:00:13.9]} 50... Qd8+ {[%clk 0:00:30.7]} 51. Ke5 {[%clk 0:00:12.5]} 51... Qc7+
{[%clk 0:00:29]} 52. Kxe6 {[%clk 0:00:09.9]} 52... Qc8+ {[%clk 0:00:17.9]} 53.
Kd6 {[%clk 0:00:09.1]} 53... Qd8+ {[%clk 0:00:15.6]} 54. Kc5 {[%clk 0:00:08.1]}
54... Qe7+ {[%clk 0:00:14.3]} 55. Kb6 {[%clk 0:00:07]} 55... Rb3+ {[%clk
0:00:09.4]} 56. Kxc6 {[%clk 0:00:06]} 56... Qb7+ {[%clk 0:00:06.9]} 57. Kd6
{[%clk 0:00:04.8]} 57... Rb6+ {[%clk 0:00:05.2]} 58. Ke5 {[%clk 0:00:03.8]}
58... Qc7+ {[%clk 0:00:03]} 59. Kxd5 {[%clk 0:00:00.8]} 59... Qd6+ {[%clk
0:00:02.9]} 0-1

[Event "Live Chess"]
[Site "Chess.com"]
[Date "2024.06.02"]
[Round "-"]
[White "Ninifu"]
[Black "mrsmarple1968"]
[Result "1-0"]
[WhiteElo "2007"]
[BlackElo "1723"]
[TimeControl "300"]
[EndTime "8:25:26 PDT"]
[Termination "Ninifu won by checkmate"]

1. d4 {[%clk 0:04:55.6]} 1... d5 {[%clk 0:04:57.8]} 2. e4 {[%clk 0:04:53.7]}
2... dxe4 {[%clk 0:04:56]} 3. Nc3 {[%clk 0:04:50.3]} 3... Nf6 {[%clk 0:04:54.2]}
4. f3 {[%clk 0:04:49.1]} 4... exf3 {[%clk 0:04:52.3]} 5. Nxf3 {[%clk 0:04:48.4]}
5... c6 {[%clk 0:04:51.2]} 6. Bd3 {[%clk 0:04:45.8]} 6... Bg4 {[%clk 0:04:49.1]}
7. O-O {[%clk 0:04:44.8]} 7... e6 {[%clk 0:04:46.4]} 8. h3 {[%clk 0:04:40.3]}
8... Bh5 {[%clk 0:04:43.5]} 9. Be3 {[%clk 0:04:34.5]} 9... Bd6 {[%clk
0:04:37.9]} 10. Qd2 {[%clk 0:04:30.9]} 10... h6 {[%clk 0:04:30.2]} 11. g4 {[%clk
0:04:24.4]} 11... Bg6 {[%clk 0:04:28.5]} 12. Bxg6 {[%clk 0:04:22.9]} 12... fxg6
{[%clk 0:04:26.5]} 13. Qd3 {[%clk 0:04:19.8]} 13... Kf7 {[%clk 0:04:23.8]} 14.
Nh4 {[%clk 0:04:07.3]} 14... g5 {[%clk 0:04:00.1]} 15. Ng6 {[%clk 0:03:58.3]}
15... Re8 {[%clk 0:03:49.4]} 16. Ne4 {[%clk 0:03:56.5]} 16... Be7 {[%clk
0:03:41.8]} 17. Rae1 {[%clk 0:03:42.7]} 17... Kg8 {[%clk 0:03:39.6]} 18. Nxe7+
{[%clk 0:03:35.1]} 18... Qxe7 {[%clk 0:03:37.2]} 19. c4 {[%clk 0:03:33.6]} 19...
Nbd7 {[%clk 0:03:22.3]} 20. Bd2 {[%clk 0:03:25.8]} 20... c5 {[%clk 0:03:05.4]}
21. d5 {[%clk 0:03:16.9]} 21... e5 {[%clk 0:02:50.4]} 22. Ng3 {[%clk 0:03:05.4]}
22... e4 {[%clk 0:02:38.6]} 23. Qe3 {[%clk 0:03:00.9]} 23... b5 {[%clk
0:02:04.6]} 24. Nf5 {[%clk 0:02:52.9]} 24... Qf8 {[%clk 0:01:49.5]} 25. b3
{[%clk 0:02:41.4]} 25... bxc4 {[%clk 0:01:46.6]} 26. bxc4 {[%clk 0:02:40.1]}
26... Ne5 {[%clk 0:01:43.4]} 27. Bc3 {[%clk 0:01:28.8]} 27... Nf3+ {[%clk
0:01:28.5]} 28. Rxf3 {[%clk 0:01:07.1]} 28... exf3 {[%clk 0:01:26.3]} 29. Ne7+
{[%clk 0:01:05.4]} 29... Kf7 {[%clk 0:01:09.2]} 30. d6 {[%clk 0:00:55.2]} 30...
Rad8 {[%clk 0:00:57.6]} 31. Qe6# {[%clk 0:00:53.4]} 1-0

[Event "Live Chess"]
[Site "Chess.com"]
[Date "2024.06.02"]
[Round "-"]
[White "JanMur7"]
[Black "LL220284LL"]
[Result "0-1"]
[WhiteElo "2285"]
[BlackElo "2483"]
[TimeControl "300"]
[EndTime "8:26:05 PDT"]
[Termination "LL220284LL won on time"]

1. c4 {[%clk 0:04:58.6]} 1... e6 {[%clk 0:04:57.3]} 2. Nc3 {[%clk 0:04:57.5]}
2... b6 {[%clk 0:04:55.2]} 3. g3 {[%clk 0:04:54.1]} 3... Bb7 {[%clk 0:04:54.7]}
4. Nf3 {[%clk 0:04:53.6]} 4... f5 {[%clk 0:04:53.9]} 5. Bg2 {[%clk 0:04:51]}
5... Nf6 {[%clk 0:04:53.4]} 6. O-O {[%clk 0:04:49.8]} 6... Be7 {[%clk
0:04:52.8]} 7. d4 {[%clk 0:04:47.8]} 7... O-O {[%clk 0:04:52.2]} 8. d5 {[%clk
0:04:46.2]} 8... Na6 {[%clk 0:04:45.1]} 9. Nd4 {[%clk 0:04:40.1]} 9... Nc5
{[%clk 0:04:30.5]} 10. dxe6 {[%clk 0:04:34.9]} 10... Bxg2 {[%clk 0:04:27.7]} 11.
Kxg2 {[%clk 0:04:31.5]} 11... Nxe6 {[%clk 0:04:00.4]} 12. Nxf5 {[%clk 0:04:29]}
12... Bb4 {[%clk 0:03:55.1]} 13. Nd4 {[%clk 0:04:15]} 13... Nxd4 {[%clk
0:03:49.7]} 14. Qxd4 {[%clk 0:04:14.9]} 14... Qe8 {[%clk 0:03:44.8]} 15. Nd5
{[%clk 0:04:06.3]} 15... Bc5 {[%clk 0:03:40]} 16. Nxf6+ {[%clk 0:04:05]} 16...
Rxf6 {[%clk 0:03:38.8]} 17. Qd5+ {[%clk 0:04:03.9]} 17... Kh8 {[%clk 0:03:36.5]}
18. Bf4 {[%clk 0:03:56.8]} 18... c6 {[%clk 0:03:30.6]} 19. Qd3 {[%clk
0:03:53.3]} 19... Qe6 {[%clk 0:03:20.3]} 20. Rad1 {[%clk 0:03:50]} 20... Rf7
{[%clk 0:03:19.2]} 21. b3 {[%clk 0:03:42.2]} 21... Re8 {[%clk 0:03:18]} 22. e3
{[%clk 0:03:38.3]} 22... a5 {[%clk 0:03:00.8]} 23. Bd6 {[%clk 0:03:34]} 23...
Bxd6 {[%clk 0:02:58]} 24. Qxd6 {[%clk 0:03:31.1]} 24... Qe4+ {[%clk 0:02:57.3]}
25. Kg1 {[%clk 0:03:29.8]} 25... h6 {[%clk 0:02:53.8]} 26. Qd3 {[%clk
0:03:27.2]} 26... Qf3 {[%clk 0:02:50.8]} 27. Qg6 {[%clk 0:03:20]} 27... Re6
{[%clk 0:02:47.1]} 28. Qd3 {[%clk 0:03:11.2]} 28... Re5 {[%clk 0:02:38.4]} 29.
Qd6 {[%clk 0:03:07.8]} 29... Rh5 {[%clk 0:02:33.1]} 30. Qb8+ {[%clk 0:02:54.3]}
30... Kh7 {[%clk 0:02:30.6]} 31. Qxb6 {[%clk 0:02:53.7]} 31... Qg4 {[%clk
0:02:26.5]} 32. Qd4 {[%clk 0:02:52.4]} 32... Qh3 {[%clk 0:02:23.8]} 33. Qe4+
{[%clk 0:02:50.7]} 33... g6 {[%clk 0:02:06.3]} 34. Qg2 {[%clk 0:02:45.3]} 34...
Qe6 {[%clk 0:02:04.9]} 35. Rd4 {[%clk 0:02:39.4]} 35... Rhf5 {[%clk 0:02:01.6]}
36. Rd2 {[%clk 0:02:25.5]} 36... a4 {[%clk 0:01:59.6]} 37. Rfd1 {[%clk
0:02:23.7]} 37... axb3 {[%clk 0:01:57.9]} 38. axb3 {[%clk 0:02:23.6]} 38... h5
{[%clk 0:01:55.1]} 39. h4 {[%clk 0:02:21.6]} 39... R5f6 {[%clk 0:01:46.9]} 40.
Qf1 {[%clk 0:02:11.4]} 40... Qg4 {[%clk 0:01:43.8]} 41. Qe2 {[%clk 0:02:07.3]}
41... Qh3 {[%clk 0:01:39.4]} 42. Qf1 {[%clk 0:02:01.8]} 42... Qg4 {[%clk
0:01:37.4]} 43. Qg2 {[%clk 0:01:58.8]} 43... Rxf2 {[%clk 0:01:34.4]} 44. Qxf2
{[%clk 0:01:53.4]} 44... Rxf2 {[%clk 0:01:32.6]} 45. Kxf2 {[%clk 0:01:52.9]}
45... Qf5+ {[%clk 0:01:31]} 46. Kg2 {[%clk 0:01:50.9]} 46... Qe4+ {[%clk
0:01:29.9]} 47. Kh2 {[%clk 0:01:49.6]} 47... Qxe3 {[%clk 0:01:28.8]} 48. Rxd7+
{[%clk 0:01:48.2]} 48... Kh6 {[%clk 0:01:27.9]} 49. R7d3 {[%clk 0:01:30.9]}
49... Qf2+ {[%clk 0:01:23.9]} 50. Kh1 {[%clk 0:01:29.6]} 50... Qf5 {[%clk
0:01:21.9]} 51. R1d2 {[%clk 0:01:24.2]} 51... Qe4+ {[%clk 0:01:18.5]} 52. Kh2
{[%clk 0:01:23.1]} 52... Qf5 {[%clk 0:01:15.9]} 53. b4 {[%clk 0:01:12]} 53...
Qe4 {[%clk 0:01:13.8]} 54. Rc3 {[%clk 0:01:10.2]} 54... Qe5 {[%clk 0:01:11.5]}
55. Rdc2 {[%clk 0:01:07.7]} 55... Qd4 {[%clk 0:01:07.5]} 56. b5 {[%clk
0:01:03.1]} 56... cxb5 {[%clk 0:01:06.5]} 57. cxb5 {[%clk 0:01:02.7]} 57... Qb6
{[%clk 0:01:05.9]} 58. Rb2 {[%clk 0:00:57.6]} 58... Qf6 {[%clk 0:01:03]} 59.
Rcc2 {[%clk 0:00:53.4]} 59... Qb6 {[%clk 0:01:00.8]} 60. Rc6 {[%clk 0:00:51.3]}
60... Qd4 {[%clk 0:00:59.9]} 61. Rbc2 {[%clk 0:00:50.4]} 61... Qb4 {[%clk
0:00:52.6]} 62. b6 {[%clk 0:00:45]} 62... Qb3 {[%clk 0:00:49.1]} 63. Rf2 {[%clk
0:00:35.4]} 63... Qb5 {[%clk 0:00:46.5]} 64. Rcf6 {[%clk 0:00:27.8]} 64... Qb1
{[%clk 0:00:41.4]} 65. Re6 {[%clk 0:00:25.6]} 65... Qb3 {[%clk 0:00:37.1]} 66.
Rfe2 {[%clk 0:00:24.3]} 66... Qb5 {[%clk 0:00:34.8]} 67. R2e5 {[%clk 0:00:22.6]}
67... Qb2+ {[%clk 0:00:33.7]} 68. Re2 {[%clk 0:00:22.1]} 68... Qb3 {[%clk
0:00:32.9]} 69. Rd6 {[%clk 0:00:19.3]} 69... Qf3 {[%clk 0:00:30.8]} 70. Red2
{[%clk 0:00:17.8]} 70... Qb3 {[%clk 0:00:29.3]} 71. Kg2 {[%clk 0:00:15.6]} 71...
Qc4 {[%clk 0:00:27.7]} 72. Kf2 {[%clk 0:00:14.2]} 72... Qe4 {[%clk 0:00:26.5]}
73. R2d3 {[%clk 0:00:13.3]} 73... Qb7 {[%clk 0:00:25.3]} 74. Ke2 {[%clk
0:00:13.2]} 74... Qe4+ {[%clk 0:00:24.2]} 75. Kd2 {[%clk 0:00:12.9]} 75... Qg2+
{[%clk 0:00:23.8]} 76. Kc3 {[%clk 0:00:12.8]} 76... Qf1 {[%clk 0:00:22.7]} 77.
Kb4 {[%clk 0:00:12.2]} 77... Qb1+ {[%clk 0:00:22]} 78. Kc5 {[%clk 0:00:12.1]}
78... Qb2 {[%clk 0:00:20.4]} 79. Kc6 {[%clk 0:00:10.9]} 79... Qg2+ {[%clk
0:00:19.9]} 80. Kc7 {[%clk 0:00:09.4]} 80... Qc2+ {[%clk 0:00:19.5]} 81. Kb8
{[%clk 0:00:07.9]} 81... Qb2 {[%clk 0:00:17.6]} 82. b7 {[%clk 0:00:07.8]} 82...
Qb5 {[%clk 0:00:16.9]} 83. Rd7 {[%clk 0:00:06.9]} 83... Qe5+ {[%clk 0:00:16.1]}
84. Kc8 {[%clk 0:00:06.2]} 84... Qe8+ {[%clk 0:00:15.1]} 85. Rd8 {[%clk
0:00:05.6]} 85... Qc6+ {[%clk 0:00:14.7]} 86. Kb8 {[%clk 0:00:04.6]} 86... Qb6
{[%clk 0:00:14.3]} 87. Ka8 {[%clk 0:00:03.7]} 87... Qa6+ {[%clk 0:00:13.5]} 88.
Kb8 {[%clk 0:00:03.6]} 88... Qb5 {[%clk 0:00:12.6]} 89. R3d6 {[%clk 0:00:03.5]}
89... Qe5 {[%clk 0:00:11]} 90. Kc7 {[%clk 0:00:03.3]} 90... Qc5+ {[%clk
0:00:09.6]} 91. Rc6 {[%clk 0:00:02.8]} 91... Qa5+ {[%clk 0:00:08.7]} 92. Kd7
{[%clk 0:00:01.9]} 92... Qd5+ {[%clk 0:00:07.5]} 93. Rd6 {[%clk 0:00:01.8]}
93... Qxb7+ {[%clk 0:00:06.9]} 94. Ke6 {[%clk 0:00:00.9]} 94... Qb3+ {[%clk
0:00:05.7]} 95. Ke7 {[%clk 0:00:00.3]} 95... Qb4 {[%clk 0:00:05.5]} 96. Ke8
{[%clk 0:00:00.2]} 96... Kg7 {[%clk 0:00:04.4]} 97. R8d7+ {[%clk 0:00:00.1]}
97... Kh8 {[%clk 0:00:03.1]} 0-1

[Event "Live Chess"]
[Site "Chess.com"]
[Date "2024.06.02"]
[Round "-"]
[White "grillage"]
[Black "wadsy27"]
[Result "0-1"]
[WhiteElo "1872"]
[BlackElo "2607"]
[TimeControl "300"]
[EndTime "8:26:17 PDT"]
[Termination "wadsy27 won on time"]

1. d4 {[%clk 0:04:56.7]} 1... c5 {[%clk 0:04:57.5]} 2. d5 {[%clk 0:04:50.7]}
2... e5 {[%clk 0:04:56.6]} 3. e4 {[%clk 0:04:40.3]} 3... d6 {[%clk 0:04:54.6]}
4. Nc3 {[%clk 0:04:37.8]} 4... Be7 {[%clk 0:04:53.7]} 5. Bb5+ {[%clk 0:04:34.2]}
5... Nd7 {[%clk 0:04:50.5]} 6. a4 {[%clk 0:04:33.5]} 6... a6 {[%clk 0:04:48.5]}
7. Be2 {[%clk 0:04:31.6]} 7... Bg5 {[%clk 0:04:46.3]} 8. Nf3 {[%clk 0:04:22.8]}
8... Bxc1 {[%clk 0:04:44.5]} 9. Qxc1 {[%clk 0:04:22.1]} 9... Ngf6 {[%clk
0:04:43.7]} 10. O-O {[%clk 0:04:20.1]} 10... Nf8 {[%clk 0:04:39]} 11. Qg5 {[%clk
0:04:13]} 11... Ng6 {[%clk 0:04:37.2]} 12. h4 {[%clk 0:04:08.2]} 12... h6 {[%clk
0:04:35.9]} 13. Qd2 {[%clk 0:04:02.4]} 13... Nf4 {[%clk 0:04:28.6]} 14. g3
{[%clk 0:03:50.9]} 14... Nxe2+ {[%clk 0:04:20.9]} 15. Qxe2 {[%clk 0:03:38.1]}
15... Bg4 {[%clk 0:04:19.1]} 16. Qd3 {[%clk 0:03:30.9]} 16... g5 {[%clk
0:04:08.4]} 17. Kg2 {[%clk 0:03:24.6]} 17... Qd7 {[%clk 0:04:03.1]} 18. Rh1
{[%clk 0:03:22.9]} 18... O-O-O {[%clk 0:03:58.7]} 19. a5 {[%clk 0:02:53]} 19...
Rdg8 {[%clk 0:03:41.1]} 20. Na4 {[%clk 0:02:48.7]} 20... Qb5 {[%clk 0:03:40.2]}
21. Qxb5 {[%clk 0:02:45.5]} 21... Bxf3+ {[%clk 0:03:39.2]} 22. Kxf3 {[%clk
0:02:41.2]} 22... axb5 {[%clk 0:03:38.2]} 23. Nb6+ {[%clk 0:02:39.2]} 23... Kc7
{[%clk 0:03:35.9]} 24. h5 {[%clk 0:02:31.4]} 24... g4+ {[%clk 0:03:27.2]} 25.
Ke3 {[%clk 0:02:22.6]} 25... Rg5 {[%clk 0:03:25.9]} 26. Rh4 {[%clk 0:02:17.1]}
26... Rxh5 {[%clk 0:03:24.7]} 27. Rxh5 {[%clk 0:02:14.8]} 27... Nxh5 {[%clk
0:03:23.2]} 28. Rh1 {[%clk 0:02:14]} 28... Ng7 {[%clk 0:03:21.1]} 29. Rh4 {[%clk
0:02:10]} 29... h5 {[%clk 0:03:19.9]} 30. c3 {[%clk 0:02:04.8]} 30... f5 {[%clk
0:03:18.2]} 31. b4 {[%clk 0:01:59.4]} 31... c4 {[%clk 0:03:12.3]} 32. f3 {[%clk
0:01:52]} 32... Rf8 {[%clk 0:03:09.1]} 33. Rh1 {[%clk 0:01:43.5]} 33... gxf3
{[%clk 0:02:59.2]} 34. Kxf3 {[%clk 0:01:35.8]} 34... fxe4+ {[%clk 0:02:50]} 35.
Kxe4 {[%clk 0:01:34.1]} 35... Nf5 {[%clk 0:02:48.1]} 36. Rh3 {[%clk 0:01:28.6]}
36... Ng7 {[%clk 0:02:42.6]} 37. Rh4 {[%clk 0:01:22.7]} 37... Rf2 {[%clk
0:02:36.3]} 38. Rh3 {[%clk 0:01:12.4]} 38... Re2+ {[%clk 0:02:33.9]} 39. Kf3
{[%clk 0:01:02.7]} 39... Rc2 {[%clk 0:02:32.6]} 40. Ke4 {[%clk 0:01:00.2]} 40...
Rxc3 {[%clk 0:02:29.7]} 41. Na8+ {[%clk 0:00:43.9]} 41... Kb8 {[%clk 0:02:27.4]}
42. Nb6 {[%clk 0:00:43]} 42... Rd3 {[%clk 0:02:24.8]} 43. Nd7+ {[%clk
0:00:40.8]} 43... Kc7 {[%clk 0:02:23.3]} 44. Nf6 {[%clk 0:00:40]} 44... Rd4+
{[%clk 0:02:20.8]} 45. Ke3 {[%clk 0:00:38.4]} 45... c3 {[%clk 0:02:19.7]} 46.
Nxh5 {[%clk 0:00:35.2]} 46... Nxh5 {[%clk 0:02:16.4]} 47. Rxh5 {[%clk
0:00:33.7]} 47... c2 {[%clk 0:02:16]} 48. Rh7+ {[%clk 0:00:25.6]} 48... Kb8
{[%clk 0:02:12.7]} 49. Rh8+ {[%clk 0:00:20.9]} 49... Ka7 {[%clk 0:02:11.1]} 50.
Rc8 {[%clk 0:00:19.5]} 50... Rxb4 {[%clk 0:02:10.7]} 51. Kd2 {[%clk 0:00:17.5]}
51... Rd4+ {[%clk 0:02:03.6]} 52. Kc1 {[%clk 0:00:14.4]} 52... Rxd5 {[%clk
0:02:03.5]} 53. Rxc2 {[%clk 0:00:12]} 53... Rd4 {[%clk 0:02:00.5]} 54. Rg2
{[%clk 0:00:09]} 54... Rg4 {[%clk 0:01:59.4]} 55. Kd2 {[%clk 0:00:07]} 55... d5
{[%clk 0:01:58.5]} 56. Kc3 {[%clk 0:00:05.5]} 56... Ka6 {[%clk 0:01:57.6]} 57.
Kb3 {[%clk 0:00:02.4]} 57... Kxa5 {[%clk 0:01:56.5]} 0-1

[Event "Live Chess"]
[Site "Chess.com"]
[Date "2024.06.02"]
[Round "-"]
[White "joellloyd"]
[Black "GerardATHart"]
[Result "0-1"]
[WhiteElo "1868"]
[BlackElo "1395"]
[TimeControl "300"]
[EndTime "8:26:38 PDT"]
[Termination "GerardATHart won by resignation"]

1. e4 {[%clk 0:04:59.4]} 1... e5 {[%clk 0:04:57.4]} 2. Nf3 {[%clk 0:04:58.2]}
2... Nc6 {[%clk 0:04:55.4]} 3. Bc4 {[%clk 0:04:57.8]} 3... Nf6 {[%clk
0:04:53.8]} 4. Ng5 {[%clk 0:04:56.5]} 4... d5 {[%clk 0:04:50.4]} 5. exd5 {[%clk
0:04:56.4]} 5... Na5 {[%clk 0:04:49]} 6. Bb5+ {[%clk 0:04:55.7]} 6... c6 {[%clk
0:04:47.9]} 7. dxc6 {[%clk 0:04:55.6]} 7... bxc6 {[%clk 0:04:46.9]} 8. Bd3
{[%clk 0:04:55.3]} 8... h6 {[%clk 0:04:43.2]} 9. Ne4 {[%clk 0:04:54.2]} 9... c5
{[%clk 0:04:32.7]} 10. Bb5+ {[%clk 0:04:45.6]} 10... Bd7 {[%clk 0:04:27.8]} 11.
Nxf6+ {[%clk 0:04:38.7]} 11... gxf6 {[%clk 0:04:22.6]} 12. Bxd7+ {[%clk
0:04:29.1]} 12... Qxd7 {[%clk 0:04:20.6]} 13. d3 {[%clk 0:04:25]} 13... Rg8
{[%clk 0:04:18.7]} 14. O-O {[%clk 0:04:22.1]} 14... Qh3 {[%clk 0:04:16.5]} 15.
g3 {[%clk 0:04:18.1]} 15... Bd6 {[%clk 0:04:06.5]} 16. Nc3 {[%clk 0:04:10.9]}
16... Kd7 {[%clk 0:04:03.9]} 17. Ne4 {[%clk 0:04:08]} 17... Be7 {[%clk
0:04:01.6]} 18. c4 {[%clk 0:04:02.8]} 18... Nc6 {[%clk 0:03:59.7]} 19. Be3
{[%clk 0:03:58.9]} 19... f5 {[%clk 0:03:44.1]} 20. Nxc5+ {[%clk 0:03:55.7]}
20... Bxc5 {[%clk 0:03:37.3]} 21. Bxc5 {[%clk 0:03:55.4]} 21... f4 {[%clk
0:03:36]} 22. d4 {[%clk 0:03:39.8]} 22... e4 {[%clk 0:03:28]} 23. Re1 {[%clk
0:03:03.3]} 23... f3 {[%clk 0:03:25.1]} 0-1

[Event "Live Chess"]
[Site "Chess.com"]
[Date "2024.06.02"]
[Round "-"]
[White "uselessduffer"]
[Black "LaupMiths"]
[Result "1-0"]
[WhiteElo "2370"]
[BlackElo "1819"]
[TimeControl "300"]
[EndTime "8:26:45 PDT"]
[Termination "uselessduffer won by resignation"]

1. e4 {[%clk 0:04:54.9]} 1... d6 {[%clk 0:04:58.9]} 2. d4 {[%clk 0:04:52.4]}
2... g6 {[%clk 0:04:58.1]} 3. Nc3 {[%clk 0:04:50.4]} 3... Bg7 {[%clk 0:04:57]}
4. Be3 {[%clk 0:04:50]} 4... Nd7 {[%clk 0:04:55.5]} 5. Nf3 {[%clk 0:04:47.7]}
5... a6 {[%clk 0:04:55]} 6. Qd2 {[%clk 0:04:45.4]} 6... b5 {[%clk 0:04:52.9]} 7.
Bd3 {[%clk 0:04:44.4]} 7... Bb7 {[%clk 0:04:49.5]} 8. O-O {[%clk 0:04:42.1]}
8... c5 {[%clk 0:04:48.4]} 9. d5 {[%clk 0:04:26.3]} 9... Ngf6 {[%clk 0:04:33.6]}
10. Bh6 {[%clk 0:04:22.3]} 10... O-O {[%clk 0:04:30.5]} 11. Rfe1 {[%clk
0:04:19]} 11... Qc7 {[%clk 0:04:23.9]} 12. a4 {[%clk 0:04:12.7]} 12... b4 {[%clk
0:04:19.6]} 13. Nd1 {[%clk 0:04:07.7]} 13... c4 {[%clk 0:04:18.8]} 14. Bf1
{[%clk 0:04:04]} 14... a5 {[%clk 0:04:18.2]} 15. Nd4 {[%clk 0:03:49]} 15... Rfe8
{[%clk 0:03:50.2]} 16. c3 {[%clk 0:03:42.4]} 16... Reb8 {[%clk 0:03:01.4]} 17.
Bxg7 {[%clk 0:03:29.8]} 17... Kxg7 {[%clk 0:02:59.4]} 18. f3 {[%clk 0:03:28.7]}
18... Ne5 {[%clk 0:02:46]} 19. Qg5 {[%clk 0:03:15.8]} 19... Bc8 {[%clk
0:02:38.6]} 20. Ne3 {[%clk 0:03:10.9]} 20... e6 {[%clk 0:02:26]} 21. f4 {[%clk
0:02:41.5]} 21... Nd3 {[%clk 0:02:22.4]} 22. Bxd3 {[%clk 0:02:34.7]} 22... cxd3
{[%clk 0:02:21.2]} 23. dxe6 {[%clk 0:02:33.4]} 23... fxe6 {[%clk 0:02:18.2]} 24.
f5 {[%clk 0:01:51.2]} 24... Qc5 {[%clk 0:02:15.5]} 25. e5 {[%clk 0:01:29.8]}
25... dxe5 {[%clk 0:02:08.2]} 26. fxe6 {[%clk 0:01:14.5]} 26... exd4 {[%clk
0:01:14.2]} 27. Qxc5 {[%clk 0:01:11.9]} 27... dxe3 {[%clk 0:01:13.2]} 28. Qe7+
{[%clk 0:01:07.8]} 1-0